fUSD/lending_fUSD_20250606
["ID","MTS","AMOUNT","RATE_DAILY","PERIOD"]
[364758049,1749229901183,-480.0,0.00029041,5]
[364758050,1749229901192,-827.81,0.00029041,5]
[364758051,1749229901205,-480.0,0.00029041,5]
[364758052,1749229901214,-151.0,0.00029041,7]
[364758053,1749229901223,-1869.68,0.00029041,5]
[364758054,1749229901232,-5122.75,0.00029041,5]
[364758055,1749229901241,-1027.17,0.00029041,5]
[364758056,1749229901252,-993.4,0.00029041,5]
[364758057,1749229901261,-297.740512,0.00029041,7]
[364758058,1749229901271,-1731.35,0.00029041,5]
[364758059,1749229901281,-2864.55,0.00029041,5]
[364758060,1749229901291,-946.49,0.00029041,5]
[364758061,1749229901300,-3640.47,0.00029041,5]
[364758062,1749229901310,-480.0,0.00029041,5]
[364758063,1749229901319,-297.740512,0.00029041,7]
[364758064,1749229901330,-480.0,0.00029041,5]
[364758065,1749229901340,-988.86,0.00029041,5]
[364758066,1749229901349,-576.53,0.00029041,5]
[364758067,1749229901359,-1518.37,0.00029041,5]
[364758068,1749229901369,-1165.4,0.00029041,5]
[364758069,1749229901382,-516.9,0.00029041,5]
[364758070,1749229901392,-1631.49,0.00029041,5]
[364758071,1749229901402,-502.37,0.00029041,5]
[364758072,1749229901412,-480.0,0.00029041,5]
[364758073,1749229901422,-818.38,0.00029041,5]
[364758074,1749229901432,-898.12,0.00029041,5]
[364758075,1749229901441,-480.0,0.00029041,5]
[364758076,1749229901456,-544.71,0.00029041,5]
[364758077,1749229901466,-484.48,0.00029041,5]
[364758078,1749229901476,-575.57,0.00029041,5]
[364758079,1749229901486,-480.0,0.00029041,5]
[364758080,1749229901495,-1082.09,0.00029041,5]
[364758081,1749229901505,-1270.81,0.00029041,5]
[364758082,1749229901515,-5019.69,0.00029041,5]
[364758083,1749229901524,-642.47,0.00029041,5]
[364758084,1749229901533,-480.0,0.00029041,5]
[364758085,1749229901543,-659.85,0.00029041,5]
[364758086,1749229901552,-706.87,0.00029041,5]
[364758087,1749229901561,-1411.91,0.00029041,5]
[364758088,1749229901571,-1928.36,0.00029041,5]
[364758089,1749229901581,-2180.66,0.00029041,5]
[364758090,1749229901590,-480.0,0.00029041,5]
[364758091,1749229901600,-702.23,0.00029041,5]
[364758092,1749229901610,-480.0,0.00029041,5]
[364758093,1749229901622,-696.68,0.00029041,5]
[364758094,1749229901634,-1531.65,0.00029041,5]
[364758095,1749229901644,-480.0,0.00029041,5]
[364758096,1749229901654,-1808.13,0.00029041,5]
[364758097,1749229901663,-480.0,0.00029041,5]
[364758098,1749229901672,-1978.88,0.00029041,5]
[364758099,1749229901682,-480.0,0.00029041,5]
[364758100,1749229901693,-2908.51,0.00029041,5]
[364758101,1749229901706,-669.35,0.00029041,5]
[364758102,1749229901716,-480.0,0.00029041,5]
[364758103,1749229901725,-1262.05,0.00029041,5]
[364758104,1749229901734,-480.0,0.00029041,5]
[364758105,1749229901744,-1585.44,0.00029041,5]
[364758106,1749229901754,-863.16,0.00029041,5]
[364758107,1749229901763,-716.92,0.00029041,5]
[364758108,1749229901773,-480.0,0.00029041,5]
[364758109,1749229901782,-480.0,0.00029041,5]
[364758110,1749229901791,-490.14,0.00029041,5]
[364758111,1749229901801,-10266.6,0.00029041,5]
[364758112,1749229901811,-1988.94,0.00029041,5]
[364758113,1749229901820,-562.55,0.00029041,5]
[364758114,1749229901830,-2790.95,0.00029041,5]
[364758115,1749229901840,-480.0,0.00029041,5]
[364758116,1749229901852,-620.01,0.00029041,5]
[364758117,1749229901866,-518.16,0.00029041,5]
[364758118,1749229901875,-576.54,0.00029041,5]
[364758119,1749229901884,-496.01,0.00029041,5]
[364758120,1749229901894,-480.0,0.00029041,5]
[364758121,1749229901903,-480.0,0.00029041,5]
[364758122,1749229901913,-480.0,0.00029041,5]
[364758123,1749229901923,-3901.93,0.00029041,5]
[364758124,1749229901932,-480.0,0.00029041,5]
[364758125,1749229901941,-1302.74,0.00029041,5]
[364758126,1749229901952,-14757.67,0.00029041,5]
[364758127,1749229901962,-2148.25,0.00029041,5]
[364758128,1749229901971,-9779.61,0.00029041,5]
[364758129,1749229901980,-480.0,0.00029041,5]
[364758130,1749229901990,-21008.66,0.00029041,5]
[364758131,1749229902001,-673.26,0.00029041,5]
[364758132,1749229902010,-480.0,0.00029041,5]
[364758133,1749229902019,-889.91,0.00029041,5]
[364758134,1749229902030,-2708.81,0.00029041,5]
[364758135,1749229902040,-776.83,0.00029041,5]
[364758136,1749229902051,-1377.28,0.00029041,5]
[364758137,1749229902062,-585.43,0.00029041,5]
[364758138,1749229902071,-480.0,0.00029041,5]
[364758139,1749229902081,-682.39,0.00029041,5]
[364758140,1749229902090,-2005.29,0.00029041,5]
[364758141,1749229902099,-4252.69,0.00029041,5]
[364758142,1749229902109,-2178.41,0.00029041,5]
[364758143,1749229902118,-848.79,0.00029041,5]
[364758144,1749229902127,-1974.61,0.00029041,5]
[364758145,1749229902136,-827.75,0.00029041,5]
[364758146,1749229902146,-480.0,0.00029041,5]
[364758147,1749229902155,-480.0,0.00029041,2]
[364758148,1749229902165,-2003.46,0.00029041,5]
[364758149,1749229902176,-1355.4,0.00029041,5]
[364758150,1749229902185,-480.0,0.00029041,5]
[364758151,1749229902195,-637.64,0.00029041,5]
[364758152,1749229902207,-480.0,0.00029041,5]
[364758153,1749229902216,-480.0,0.00029041,2]
[364758154,1749229902226,-480.0,0.00029041,5]
[364758155,1749229902236,-1289.4,0.00029041,5]
[364758156,1749229902248,-841.89,0.00029041,5]
[364758157,1749229902258,-347.392354,0.00029041,7]
[364758158,1749229902268,-819.47,0.00029041,5]
[364758159,1749229902277,-347.392354,0.00029041,7]
[364758160,1749229902287,-1582.7,0.00029041,5]
[364758161,1749229902296,-849.03,0.00029041,5]
[364758162,1749229902306,-739.93,0.00029041,5]
[364758163,1749229902316,-692.16,0.00029041,5]
[364758164,1749229902326,-787.91,0.00029041,5]
[364758165,1749229902336,-151.0,0.00029041,7]
[364758166,1749229902346,-1648.73,0.00029041,5]
[364758167,1749229902356,-580.44,0.00029041,5]
[364758168,1749229902365,-754.23,0.00029041,5]
[364758169,1749229902547,-1093.91,0.00029041,5]
[364758170,1749229902557,-150.0,0.00029042,7]
[364758171,1749229902567,-326.78703344,0.00029045,7]
[364758172,1749229902576,-255.59327405,0.00029045,7]
[364758173,1749229902586,-150.0,0.00029049,7]
[364758174,1749229902596,-150.0,0.00029061,7]
[364758175,1749229902605,-150.0,0.00029066,7]
[364758176,1749229902616,-150.0,0.00029068,2]
[364758177,1749229902625,-326.78703344,0.00029077,7]
[364758178,1749229902638,-255.59327405,0.00029077,7]
[364758179,1749229902647,-150.0,0.00029082,7]
[364758180,1749229902656,-150.0,0.00029087,7]
[364758181,1749229902666,-150.0,0.00029097,7]
[364758182,1749229902678,-159.20198,0.000291,2]
[364758183,1749229902687,-326.78703344,0.00029109,7]
[364758184,1749229902696,-255.59327405,0.00029109,7]
[364758185,1749229902710,-150.0,0.00029111,7]
[364758186,1749229902720,-150.0,0.00029114,2]
[364758187,1749229902729,-150.0,0.00029121,7]
[364758188,1749229902739,-166.66,0.00029122,2]
[364758189,1749229902748,-150.0,0.00029125,7]
[364758190,1749229902758,-150.0,0.00029133,7]
[364758191,1749229902768,-326.78703344,0.00029141,7]
[364758192,1749229902778,-255.59327405,0.00029141,7]
[364758193,1749229902787,-150.0,0.00029151,2]
[364758194,1749229902797,-150.0,0.00029151,2]
[364758195,1749229902807,-150.0,0.00029152,2]
[364758196,1749229902816,-150.0,0.00029164,7]
[364758197,1749229902825,-150.0,0.00029169,7]
[364758198,1749229902834,-326.78703344,0.00029173,7]
[364758199,1749229902843,-255.59327405,0.00029173,7]
[364758200,1749229902854,-150.0,0.00029176,7]
[364758201,1749229902864,-150.0,0.00029176,2]
[364758202,1749229902873,-184.50517476,0.00029178,30]
[364758203,1749229902883,-178.47361248,0.00029178,30]
[364758204,1749229902892,-250.81883161,0.00029178,30]
[364758205,1749229902901,-530.69530424,0.00029178,30]
[364758206,1749229902910,-152.87652873,0.00029178,30]
[364758207,1749229902919,-150.0,0.0002918,7]
[364758208,1749229902929,-1000.0,0.00029181,2]
[364758209,1749229902938,-151.0,0.00029195,7]
[364758210,1749229902947,-151.0,0.00029195,7]
[364758211,1749229902958,-151.0,0.00029195,7]
[364758212,1749229902968,-151.0,0.00029195,7]
[364758213,1749229902977,-151.0,0.00029195,7]
[364758214,1749229902988,-164.396568,0.00029195,7]
[364758215,1749229902998,-164.396568,0.00029195,7]
[364758216,1749229903008,-152.576364,0.00029195,7]
[364758217,1749229903018,-158.08647,0.00029195,7]
[364758218,1749229903027,-158.08647,0.00029195,7]
[364758219,1749229903036,-151.0,0.00029195,7]
[364758220,1749229903045,-170.339594,0.00029195,7]
[364758221,1749229903055,-151.0,0.00029195,7]
[364758222,1749229903064,-150.0,0.00029195,7]
[364758223,1749229903073,-150.0,0.00029202,7]
[364758224,1749229903083,-176.947066,0.00029204,7]
[364758225,1749229903092,-176.947066,0.00029204,7]
[364758226,1749229903102,-151.0,0.00029204,7]
[364758227,1749229903112,-2223.030084,0.00029204,7]
[364758228,1749229903122,-2223.03008114,0.00029204,7]
[364758229,1749229903132,-1957.55,0.00029204,5]
[364758230,1749229903142,-1959.11,0.00029204,5]
[364758231,1749229903151,-2252.79,0.00029204,5]
[364758232,1749229903162,-2706.51,0.00029204,5]
[364758233,1749229903172,-347.566727,0.00029204,7]
[364758234,1749229903183,-347.566729,0.00029204,7]
[364758235,1749229903194,-10000.0,0.00029204,7]
[364758236,1749229903205,-10000.0,0.00029204,7]
[364758237,1749229903214,-151.0,0.00029205,7]
[364758238,1749229903225,-151.0,0.00029205,7]
[364758239,1749229903235,-151.0,0.00029205,7]
[364758240,1749229903245,-199.815143,0.00029205,7]
[364758241,1749229903255,-199.815143,0.00029205,7]
[364758242,1749229903265,-151.0,0.00029205,7]
[364758243,1749229903274,-151.0,0.00029205,7]
[364758244,1749229903284,-217.238533,0.00029205,7]
[364758245,1749229903293,-245.725887,0.00029205,7]
[364758246,1749229903303,-250.071268,0.00029205,7]
[364758247,1749229903312,-250.071268,0.00029205,7]
[364758248,1749229903323,-1053.821183,0.00029205,7]
[364758249,1749229903332,-1053.821183,0.00029205,7]
[364758250,1749229903342,-813.484633,0.00029205,7]
[364758251,1749229903351,-383.621558,0.00029205,7]
[364758252,1749229903360,-813.484633,0.00029205,7]
[364758253,1749229903370,-383.621558,0.00029205,7]
[364758254,1749229903380,-151.0,0.00029205,7]
[364758255,1749229903389,-461.872158,0.00029205,7]
[364758256,1749229903399,-461.872158,0.00029205,7]
[364758257,1749229903408,-160.144455,0.00029205,7]
[364758258,1749229903418,-160.144455,0.00029205,7]
[364758259,1749229903428,-239.896546,0.00029205,7]
[364758260,1749229903437,-239.896546,0.00029205,7]
[364758261,1749229903446,-1010.98,0.00029205,5]
[364758262,1749229903458,-446.875126,0.00029205,7]
[364758263,1749229903468,-153.0604,0.00029205,7]
[364758264,1749229903477,-446.875126,0.00029205,7]
[364758265,1749229903487,-151.0,0.00029205,7]
[364758266,1749229903496,-666.83,0.00029205,5]
[364758267,1749229903506,-151.0,0.00029205,7]
[364758268,1749229903516,-1122.19802,0.00029205,7]
[364758269,1749229903525,-1122.19802,0.00029205,7]
[364758270,1749229903535,-151.0,0.00029205,7]
[364758271,1749229903545,-480.0,0.00029205,5]
[364758272,1749229903554,-300.0,0.00029205,5]
[364758273,1749229903564,-480.0,0.00029205,5]
[364758274,1749229903574,-480.0,0.00029205,5]
[364758275,1749229903584,-480.0,0.00029205,5]
[364758276,1749229903594,-480.0,0.00029205,5]
[364758277,1749229903604,-1011.49,0.00029205,5]
[364758278,1749229903613,-240.486893,0.00029205,7]
[364758279,1749229903624,-151.0,0.00029205,7]
[364758280,1749229903638,-240.486893,0.00029205,7]
[364758281,1749229903648,-248.606301,0.00029205,7]
[364758282,1749229903658,-558.43,0.00029205,5]
[364758283,1749229903670,-610.13,0.00029205,5]
[364758284,1749229903680,-1715.86,0.00029205,5]
[364758285,1749229903690,-807.41,0.00029205,5]
[364758286,1749229903699,-151.0,0.00029205,7]
[364758287,1749229903710,-602.58,0.00029205,5]
[364758288,1749229903720,-480.0,0.00029205,5]
[364758289,1749229903730,-480.0,0.00029205,5]
[364758290,1749229903740,-480.0,0.00029205,5]
[364758291,1749229903752,-480.0,0.00029205,5]
[364758292,1749229903762,-550.31,0.00029205,5]
[364758293,1749229903772,-622.13,0.00029205,5]
[364758294,1749229903781,-480.0,0.00029205,5]
[364758295,1749229903791,-599.55,0.00029205,5]
[364758296,1749229903800,-480.0,0.00029205,5]
[364758297,1749229903810,-490.64,0.00029205,5]
[364758298,1749229903819,-480.0,0.00029205,5]
[364758299,1749229903829,-203.189938,0.00029205,7]
[364758300,1749229903838,-203.189938,0.00029205,7]
[364758301,1749229903848,-480.0,0.00029205,5]
[364758302,1749229903858,-321.24603856,0.00029205,5]
[364758303,1749229903867,-2384.26,0.00029205,5]
[364758304,1749229903877,-653.07,0.00029205,5]
[364758305,1749229903886,-757.83,0.00029205,5]
[364758306,1749229903896,-1601.61,0.00029205,5]
[364758307,1749229903905,-589.54,0.00029205,5]
[364758308,1749229903915,-480.0,0.00029205,5]
[364758309,1749229903925,-1346.978979,0.00029205,7]
[364758310,1749229903934,-1346.978979,0.00029205,7]
[364758311,1749229903943,-714.86,0.00029205,5]
[364758312,1749229903954,-777.0,0.00029205,5]
[364758313,1749229903963,-480.0,0.00029205,5]
[364758314,1749229903973,-1293.92,0.00029205,5]
[364758315,1749229903983,-952.4,0.00029205,5]
[364758316,1749229903992,-692.87,0.00029205,5]
[364758317,1749229904001,-1552.44,0.00029205,5]
[364758318,1749229904011,-824.69,0.00029205,5]
[364758319,1749229904020,-878.5,0.00029205,5]
[364758320,1749229904029,-587.63523916,0.00029205,5]
[364758321,1749229904038,-1820.97,0.00029205,5]
[364758322,1749229904048,-1445.92,0.00029205,5]
[364758323,1749229904057,-480.0,0.00029205,5]
[364758324,1749229904066,-686.33,0.00029205,5]
[364758325,1749229904076,-1256.45,0.00029205,5]
[364758326,1749229904085,-1113.88,0.00029205,5]
[364758327,1749229904094,-480.0,0.00029205,5]
[364758328,1749229904103,-480.0,0.00029205,5]
[364758329,1749229904112,-876.31,0.00029205,5]
[364758330,1749229904121,-872.88,0.00029205,5]
[364758331,1749229904130,-565.93,0.00029205,5]
[364758332,1749229904139,-757.79,0.00029205,5]
[364758333,1749229904147,-767.93,0.00029205,5]
[364758334,1749229904157,-379.208433,0.00029205,7]
[364758335,1749229904166,-379.208433,0.00029205,7]
[364758336,1749229904175,-1120.8,0.00029205,5]
[364758337,1749229904184,-480.0,0.00029205,5]
[364758338,1749229904193,-695.31,0.00029205,5]
[364758339,1749229904203,-673.95,0.00029205,5]
[364758340,1749229904212,-480.0,0.00029205,5]
[364758341,1749229904222,-931.01,0.00029205,5]
[364758342,1749229904232,-480.0,0.00029205,5]
[364758343,1749229904241,-480.0,0.00029205,5]
[364758344,1749229904251,-480.0,0.00029205,5]
[364758345,1749229904261,-609.77,0.00029205,5]
[364758346,1749229904270,-480.0,0.00029205,5]
[364758347,1749229904280,-480.0,0.00029205,5]
[364758348,1749229904289,-1281.91,0.00029205,5]
[364758349,1749229904299,-816.61,0.00029205,5]
[364758350,1749229904308,-480.0,0.00029205,5]
[364758351,1749229904317,-764.02,0.00029205,5]
[364758352,1749229904326,-1371.81,0.00029205,5]
[364758353,1749229904335,-1580.65,0.00029205,5]
[364758354,1749229904344,-480.0,0.00029205,5]
[364758355,1749229904354,-583.36,0.00029205,5]
[364758356,1749229904363,-533.29,0.00029205,5]
[364758357,1749229904373,-979.62,0.00029205,5]
[364758358,1749229904383,-480.0,0.00029205,5]
[364758359,1749229904393,-680.63,0.00029205,5]
[364758360,1749229904402,-610.2,0.00029205,5]
[364758361,1749229904411,-480.0,0.00029205,5]
[364758362,1749229904421,-767.55,0.00029205,5]
[364758363,1749229904430,-480.0,0.00029205,5]
[364758364,1749229904440,-1108.13,0.00029205,5]
[364758365,1749229904451,-1055.72,0.00029205,5]
[364758366,1749229904461,-1139.21,0.00029205,5]
[364758367,1749229904470,-480.0,0.00029205,5]
[364758368,1749229904480,-1478.89,0.00029205,5]
[364758369,1749229904490,-732.79,0.00029205,5]
[364758370,1749229904500,-731.83,0.00029205,5]
[364758371,1749229904509,-480.0,0.00029205,5]
[364758372,1749229904519,-639.73,0.00029205,5]
[364758373,1749229904529,-956.02,0.00029205,5]
[364758374,1749229904539,-1739.7,0.00029205,5]
[364758375,1749229904548,-1036.79,0.00029205,5]
[364758376,1749229904557,-2235.27,0.00029205,5]
[364758377,1749229904567,-480.0,0.00029205,5]
[364758378,1749229904576,-504.96,0.00029205,5]
[364758379,1749229904586,-480.0,0.00029205,5]
[364758380,1749229904595,-539.64,0.00029205,5]
[364758381,1749229904606,-1178.04,0.00029205,5]
[364758382,1749229904615,-995.2,0.00029205,5]
[364758383,1749229904626,-1178.83,0.00029205,5]
[364758384,1749229904638,-1100.7,0.00029205,5]
[364758385,1749229904647,-1284.64,0.00029205,5]
[364758386,1749229904656,-751.51,0.00029205,5]
[364758387,1749229904666,-835.65,0.00029205,5]
[364758388,1749229904675,-3636.22,0.00029205,5]
[364758389,1749229904684,-480.0,0.00029205,5]
[364758390,1749229904693,-600.0,0.00029205,30]
[364758391,1749229904703,-1074.16,0.00029205,5]
[364758392,1749229904712,-5321.9,0.00029205,5]
[364758393,1749229904721,-480.0,0.00029205,5]
[364758394,1749229904730,-987.67,0.00029205,5]
[364758395,1749229904739,-700.11,0.00029205,5]
[364758396,1749229904748,-2080.45,0.00029205,5]
[364758397,1749229904759,-200.45103809,0.00029205,5]
[364758398,1749229904769,-734.66,0.00029205,5]
[364758399,1749229904778,-6395.04,0.00029205,5]
[364758400,1749229904787,-480.0,0.00029205,5]
[364758401,1749229904797,-835.42,0.00029205,5]
[364758402,1749229904806,-480.0,0.00029205,5]
[364758403,1749229904815,-713.79,0.00029205,5]
[364758404,1749229904824,-2288.96,0.00029205,5]
[364758405,1749229904833,-1697.69,0.00029205,5]
[364758406,1749229904842,-727.92,0.00029205,5]
[364758407,1749229904852,-12208.62,0.00029205,5]
[364758408,1749229904860,-3886.76,0.00029205,5]
[364758409,1749229904870,-6723.06,0.00029205,5]
[364758410,1749229904879,-2328.748482,0.00029205,5]
[364758411,1749229904889,-480.0,0.00029205,5]
[364758412,1749229904899,-3392.86,0.00029205,5]
[364758413,1749229904908,-540.76,0.00029205,5]
[364758414,1749229904917,-527.54,0.00029205,5]
[364758415,1749229904926,-1317.74,0.00029205,5]
[364758416,1749229904935,-2152.11,0.00029205,5]
[364758417,1749229904945,-9718.94,0.00029205,5]
[364758418,1749229904956,-76268.38,0.00029205,5]
[364758419,1749229904965,-978.82,0.00029205,5]
[364758420,1749229904975,-587.06,0.00029205,5]
[364758421,1749229904985,-499.91,0.00029205,5]
[364758422,1749229904994,-480.0,0.00029205,5]
[364758423,1749229905003,-725.67,0.00029205,5]
[364758424,1749229905012,-2136.804126,0.00029205,5]
[364758425,1749229905022,-3764.36,0.00029205,5]
[364758426,1749229905032,-9211.11,0.00029205,5]
[364758427,1749229905042,-1051.06,0.00029205,5]
[364758428,1749229905052,-1366.23,0.00029205,5]
[364758429,1749229905061,-1624.53,0.00029205,5]
[364758430,1749229905070,-983.23,0.00029205,5]
[364758431,1749229905080,-2500.86,0.00029205,5]
[364758432,1749229905089,-508.09,0.00029205,5]
[364758433,1749229905098,-2408.48,0.00029205,5]
[364758434,1749229905107,-1199.82,0.00029205,5]
[364758435,1749229905117,-1867.89,0.00029205,5]
[364758436,1749229905278,-1202.07,0.00029205,5]
[364758437,1749229905291,-1234.98,0.00029205,5]
[364758438,1749229905301,-745.42,0.00029205,5]
[364758439,1749229905310,-1000.0,0.00029205,5]
[364758440,1749229905321,-3729.37,0.00029205,5]
[364758441,1749229905331,-1324.5,0.00029205,5]
[364758442,1749229905341,-1417.88,0.00029205,5]
[364758443,1749229905350,-722.71,0.00029205,5]
[364758444,1749229905360,-1476.23,0.00029205,5]
[364758445,1749229905370,-868.6,0.00029205,5]
[364758446,1749229905379,-1888.62,0.00029205,5]
[364758447,1749229905389,-632.37,0.00029205,5]
[364758448,1749229905399,-756.12,0.00029205,5]
[364758449,1749229905409,-1440.17,0.00029205,5]
[364758450,1749229905419,-1194.84,0.00029205,2]
[364758451,1749229905428,-2062.89,0.00029205,5]
[364758452,1749229905437,-557.64,0.00029205,5]
[364758453,1749229905447,-1788.1,0.00029205,5]
[364758454,1749229905460,-480.0,0.00029205,5]
[364758455,1749229905469,-1072.25,0.00029205,5]
[364758456,1749229905479,-480.0,0.00029205,5]
[364758457,1749229905489,-3928.65,0.00029205,5]
[364758458,1749229905499,-480.0,0.00029205,5]
[364758459,1749229905511,-13781.59,0.00029205,5]
[364758460,1749229905520,-2660.61,0.00029205,5]
[364758461,1749229905531,-3569.21,0.00029205,5]
[364758462,1749229905542,-1139.74,0.00029205,5]
[364758463,1749229905552,-480.0,0.00029205,5]
[364758464,1749229905562,-480.0,0.00029205,5]
[364758465,1749229905572,-827.81,0.00029205,5]
[364758466,1749229905581,-480.0,0.00029205,5]
[364758467,1749229905591,-1869.68,0.00029205,5]
[364758468,1749229905601,-5122.75,0.00029205,5]
[364758469,1749229905611,-1027.17,0.00029205,5]
[364758470,1749229905623,-993.4,0.00029205,5]
[364758471,1749229905633,-1731.35,0.00029205,5]
[364758472,1749229905643,-2864.55,0.00029205,5]
[364758473,1749229905654,-946.49,0.00029205,5]
[364758474,1749229905663,-3640.47,0.00029205,5]
[364758475,1749229905674,-480.0,0.00029205,5]
[364758476,1749229905683,-480.0,0.00029205,5]
[364758477,1749229905693,-988.86,0.00029205,5]
[364758478,1749229905706,-576.53,0.00029205,5]
[364758479,1749229905717,-1518.37,0.00029205,5]
[364758480,1749229905727,-1165.4,0.00029205,5]
[364758481,1749229905737,-516.9,0.00029205,5]
[364758482,1749229905746,-1631.49,0.00029205,5]
[364758483,1749229905756,-502.37,0.00029205,5]
[364758484,1749229905766,-480.0,0.00029205,5]
[364758485,1749229905776,-818.38,0.00029205,5]
[364758486,1749229905786,-898.12,0.00029205,5]
[364758487,1749229905795,-480.0,0.00029205,5]
[364758488,1749229905804,-544.71,0.00029205,5]
[364758489,1749229905814,-484.48,0.00029205,5]
[364758490,1749229905824,-575.57,0.00029205,5]
[364758491,1749229905833,-165.81852722,0.00029205,5]
[364758492,1749229905843,-1082.09,0.00029205,5]
[364758493,1749229905853,-1270.81,0.00029205,5]
[364758494,1749229905863,-5019.69,0.00029205,5]
[364758495,1749229905872,-642.47,0.00029205,5]
[364758496,1749229905882,-480.0,0.00029205,5]
[364758497,1749229905892,-659.85,0.00029205,5]
[364758498,1749229905901,-706.87,0.00029205,5]
[364758499,1749229905910,-1411.91,0.00029205,5]
[364758500,1749229905920,-1928.36,0.00029205,5]
[364758501,1749229905929,-2180.66,0.00029205,5]
[364758502,1749229905939,-480.0,0.00029205,5]
[364758503,1749229905949,-702.23,0.00029205,5]
[364758504,1749229905960,-480.0,0.00029205,5]
[364758505,1749229905970,-696.68,0.00029205,5]
[364758506,1749229905980,-1531.65,0.00029205,5]
[364758507,1749229905990,-480.0,0.00029205,5]
[364758508,1749229906000,-1808.13,0.00029205,5]
[364758509,1749229906010,-480.0,0.00029205,5]
[364758510,1749229906020,-1978.88,0.00029205,5]
[364758511,1749229906030,-480.0,0.00029205,5]
[364758512,1749229906040,-2908.51,0.00029205,5]
[364758513,1749229906050,-669.35,0.00029205,5]
[364758514,1749229906059,-480.0,0.00029205,5]
[364758515,1749229906069,-1262.05,0.00029205,5]
[364758516,1749229906079,-480.0,0.00029205,5]
[364758517,1749229906088,-1585.44,0.00029205,5]
[364758518,1749229906098,-863.16,0.00029205,5]
[364758519,1749229906107,-716.92,0.00029205,5]
[364758520,1749229906117,-480.0,0.00029205,5]
[364758521,1749229906127,-480.0,0.00029205,5]
[364758522,1749229906136,-490.14,0.00029205,5]
[364758523,1749229906146,-10266.6,0.00029205,5]
[364758524,1749229906155,-1988.94,0.00029205,5]
[364758525,1749229906165,-562.55,0.00029205,5]
[364758526,1749229906174,-2790.95,0.00029205,5]
[364758527,1749229906184,-248.15643598,0.00029205,5]
[364758528,1749229906194,-620.01,0.00029205,5]
[364758529,1749229906204,-518.16,0.00029205,5]
[364758530,1749229906215,-576.54,0.00029205,5]
[364758531,1749229906224,-480.0,0.00029205,5]
[364758532,1749229906234,-496.01,0.00029205,5]
[364758533,1749229906243,-480.0,0.00029205,5]
[364758534,1749229906253,-480.0,0.00029205,5]
[364758535,1749229906262,-3901.93,0.00029205,5]
[364758536,1749229906272,-480.0,0.00029205,5]
[364758537,1749229906281,-1302.74,0.00029205,5]
[364758538,1749229906291,-14757.67,0.00029205,5]
[364758539,1749229906301,-2148.25,0.00029205,5]
[364758540,1749229906310,-9779.61,0.00029205,5]
[364758541,1749229906319,-480.0,0.00029205,5]
[364758542,1749229906329,-21008.66,0.00029205,5]
[364758543,1749229906339,-673.26,0.00029205,5]
[364758544,1749229906348,-480.0,0.00029205,5]
[364758545,1749229906358,-2708.81,0.00029205,5]
[364758546,1749229906368,-889.91,0.00029205,5]
[364758547,1749229906377,-776.83,0.00029205,5]
[364758548,1749229906388,-1377.28,0.00029205,5]